[Event "Dutch Open 2022"]
[Site "Dieren"]
[Date "2022.07.27"]
[Round "2.3"]
[White "Maatman, Nick"]
[Black "Sekar, B."]
[Result "0-1"]
[ECO "E49"]
[WhiteElo "2368"]
[BlackElo "2241"]
[Annotator "TA"]
[PlyCount "172"]
[EventDate "2022.07.14"]
[EventType "swiss"]
[EventCountry "NED"]
[SourceTitle "playchess.com"]
[Source "ChessBase"]
[SourceQuality "1"]
[TimeControl "40/5400+30:1800+30"]

{[%evp 18,172,0,-16,-19,-18,0,-29,-17,-47,-47,-35,-37,-35,-18,-16,-20,-35,-20,-28,-17,-16,-14,-9,-16,-17,0,0,-3,-10,0,-12,0,-15,0,-14,-14,-25,-25,-34,-28,-23,-6,-75,-64,-70,-42,-134,-133,-180,-201,-179,-161,-161,-161,-161,-161,-161,-161,-161,-161,-161,-161,-161,-161,-163,-163,-163,-163,-163,-163,-170,-163,-249,-249,-249,-249,-249,-214,-249,-214,-185,-177,-177,-177,-544,-535,-540,-363,-363,-363,-363,-363,-363,-363,-363,-363,-363,-363,-264,-284,-236,-221,-221,-214,-214,-214,-214,-214,-214,-189,-189,-189,-214,-214,-214,-214,-29969,-95,-70,0,-214,-214,-214,-214,-1069,-328,-3472,-214,-1774,-1297,-868,-868,-456,-214,-29957,-29959,-29971,-29953,-29946,-12707,-12795,-12795,-29971,-29972,-29972,-29973,-29973,-29974,-29974,-29975,-29975,-29976,-29982,-29982,-29982,-29981]} 1. c4 {[%emt 0:00:02]} e6 {[%emt 0:04:23]} 2. Nc3 {[%emt 0:02:01]} d5 {[%emt 0:00:07]} 3. d4 {[%emt 0:01:37]} Bb4 {[%emt 0:00:30]} 4. e3 {[%emt 0:01:41]} Nf6 {[%emt 0:00:09]} 5. a3 {[%emt 0:01:20]} Bxc3+ {[%emt 0:05:50]} 6. bxc3 {[%emt 1:26:49]} O-O {[%emt 0:00:35]} 7. Bd3 {[%emt 0:00:00]} dxc4 {[%emt 0:00:35]} 8. Bxc4 {[%emt 0:00:00]} c5 {[%emt 0:00:08]} 9. Ne2 {[%emt 0:00:00]} Qc7 {[%emt 0:00:33]} 10. Ba2 {[%emt 0:00:00]} b6 {[%emt 0:22:06] E49: Nimzo-Indian: Rubinstein: 5 Bd3 d5 6 a3 Bxc3+ 7 bxc3.} 11. O-O {[%emt 0:00:00]} Ba6 {[%emt 0:00:44]} 12. f3 {[%emt 0:00:00] Recently 12.Bb2 got a lot of attention.} Nc6 {[%emt 0:01:42] Black has an edge.} 13. Rf2 {[%emt 0:00:00]} Rfd8 {[%emt 0:00:16]} 14. Qa4 {[%emt 0:00:00]} Na5 {[%emt 0:05:01]} 15. e4 {[%emt 0:00:00]} Qd7 {[%emt 0:07:48]} 16. Qxd7 {[%emt 0:00:00]} Rxd7 {[%emt 0:01:21][%cal Bd8d7,Bd7c7,Bc7c4][%mdl 32]} 17. Be3 {[%emt 0:00:00]} Bc4 {[%emt 0:01:07] [#]} 18. Nc1 $146 {[%emt 0:00:00]} ({Predecessor:} 18. g4 Bxa2 19. Rxa2 Nc4 20. Bf4 Rc8 21. Rf1 Ne8 22. Rb1 f5 23. gxf5 exf5 24. exf5 {½-½ (42) Kuvachev,A (2405)-Vornanen,A (2353) ICCF email 2008}) 18... Bxa2 {[%emt 0:01:32]} 19. Rfxa2 {[%emt 0:00:00]} cxd4 {[%emt 0:02:22]} 20. cxd4 {[%emt 0:00:00]} Rc8 {[%emt 0:00:08]} 21. Ne2 {[%emt 0:00:00]} Rdc7 {[%emt 0:02:23]} 22. Kf1 {[%emt 0:00:00]} Ne8 {[%emt 0:02:35][%cal Bf6e8,Be8c7,Bc7e6][%mdl 32]} 23. Bf4 {[%emt 0:00:00]} Rc4 {[%emt 0:00:49]} 24. Rd1 {[%emt 0:00:00]} Nc7 {[%emt 0:06:13]} 25. Rad2 {[%emt 0:00:00]} Kf8 {[%emt 0:06:29]} 26. d5 {[%emt 0:00:00]} exd5 {[%emt 0:00:09]} 27. exd5 {[%emt 0:00:00] Strongly threatening d6.} Rd8 {[%emt 0:01:57]} 28. Bg3 {[%emt 0:00:32]} Rc5 {[%emt 0:06:50]} 29. d6 {[%emt 0:01:18]} Ne6 {[%emt 0:00:21] White must now prevent ...Nc4.} 30. d7 {[%emt 0:01:34]} (30. Nd4 $11 {keeps the balance.}) 30... Nc4 $17 {[%emt 0:00:14][%csl LRa3,LRd2] aiming for ...Kg8.} 31. Rd3 $1 {[%emt 0:00:59]} Rc6 {[%emt 0:03:45]} 32. Nc3 {[%emt 0:06:55]} ({Better is} 32. Rc1 $15) 32... Nc5 {[%emt 0:06:19] Pair of Knights!} 33. Nb5 {[%emt 0:00:03]} (33. Bh4 $2 f6 34. Rd4 Ne3+ 35. Ke2 Nxd1 36. Rxd1 Rxd7 37. Rxd7 Nxd7 $19) (33. Bd6+ $17 {keeps fighting.} Rxd6 34. Rxd6) 33... Nxd3 $19 {[%emt 0:01:19]} 34. Rxd3 {[%emt 0:00:01]} Ke7 {[%emt 0:02:12]} 35. Nxa7 {[%emt 0:00:56]} Rc5 {[%emt 0:01:30]} 36. Bf2 {[%emt 0:01:28]} Rc7 {[%emt 0:00:22]} (36... Rxd7 37. Bxc5+ bxc5 38. Nc6+ Ke6 39. Nd8+ Ke7 40. Nc6+ Ke6 41. Nd8+ Ke7 42. Nc6+ $11) 37. Nc8+ {[%emt 0:00:33]} Ke6 {[%emt 0:00:01]} 38. Nxb6 {[%emt 0:00:58]} Nxb6 {[%emt 0:00:12]} 39. Bxb6 {[%emt 0:00:03][%mdl 4096] Endgame KRR-KRB} Rc1+ {[%emt 0:00:09]} 40. Kf2 {[%emt 0:01:00]} Rc2+ {[%emt 0:00:16]} 41. Kg3 {[%emt 0:30:30]} Rxd7 {[%emt 0:30:19]} 42. Rxd7 {[%emt 0:00:26]} Kxd7 {[%emt 0:00:06] KR-KB} 43. a4 {[%emt 0:00:06]} Ra2 {[%emt 0:00:48]} 44. a5 {[%emt 0:00:03]} Ke6 {[%emt 0:00:18]} 45. h4 {[%emt 0:00:00]} (45. Bc7 $142) 45... h5 {[%emt 0:00:00]} 46. Kh3 {[%emt 0:00:00]} Ra4 {[%emt 0:00:00]} 47. Kg3 {[%emt 0:00:00]} g6 {[%emt 0:00:00]} 48. Kh3 {[%emt 0:00:00]} Ke5 {[%emt 0:00:00]} 49. Kg3 {[%emt 0:00:00]} Ra2 {[%emt 0:00:00]} 50. Bc7+ {[%emt 0:00:00]} Kd4 {[%emt 0:00:42]} 51. Kf4 $2 {[%emt 0:00:00]} (51. Bb6+ {is more resistant.} Kc4 52. Kh2) 51... Rxg2 {[%emt 0:01:29]} 52. a6 {[%emt 0:00:00]} Ra2 {[%emt 0:01:44]} 53. Bb6+ {[%emt 0:00:00]} Kd3 {[%emt 0:06:22]} ({Not} 53... Kd5 $2 54. a7 $19) 54. a7 {[%emt 0:00:00]} f6 {[%emt 0:00:05]} 55. Bc5 {[%emt 0:00:52]} Ra4+ {[%emt 0:00:52]} 56. Kg3 {[%emt 0:00:05]} Kc4 {[%emt 0:02:54]} 57. Bb6 {[%emt 0:00:01]} Kd5 {[%emt 0:00:14]} 58. Be3 {[%emt 0:04:02]} Ke6 {[%emt 0:00:19]} 59. Bd4 {[%emt 0:01:00]} Kf5 {[%emt 0:00:12]} 60. Be3 {[%emt 0:00:31]} g5 {[%emt 0:00:21]} 61. Bd4 {[%emt 0:01:22]} Ra2 {[%emt 0:01:59]} 62. Be3 {[%emt 0:01:11]} Ra3 {[%emt 0:00:08]} 63. Bc5 {[%emt 0:00:05]} Ra6 {[%emt 0:00:24]} 64. Be3 {[%emt 0:00:09]} Ra1 {[%emt 0:01:12]} 65. Bd4 {[%emt 0:01:45]} Ra4 {[%emt 0:00:06]} 66. Bc5 {[%emt 0:00:43]} g4 {[%emt 0:00:56]} ({Stronger than} 66... gxh4+ 67. Kh3) 67. Be3 $2 {[%emt 0:00:48] [#]} (67. fxg4+ $19 Rxg4+ 68. Kf3) 67... Ra3 $2 {[%emt 0:00:46]} (67... gxf3 $1 {mates} 68. Kxf3 Ke5 69. Ke2 Ke4 70. Bc5 Ra2+ 71. Kd1 f5 72. Ke1 Kf3 73. Bd4 f4 74. Kf1 Kg3 75. Bg1 Ra1+ 76. Ke2 f3+ 77. Kd3 f2 78. a8=Q f1=Q+ 79. Kd4 Qxg1+ 80. Kc4 Rxa8 81. Kd5 Ra5+ 82. Kc4 Qc5+ 83. Kd3 Ra3+ 84. Ke2 Qf2+ 85. Kd1 Ra1#) 68. Bc5 $17 {[%emt 0:00:08]} Ra4 {[%emt 0:00:24]} (68... Rxf3+ $2 69. Kg2 Rc3 {[#]} 70. a8=Q $1 $18) (68... Ra5 $15 69. fxg4+ hxg4) 69. Bd4 $2 {[%emt 0:00:45] Black continues to play with concentration.} gxf3 $19 {[%emt 0:00:27]} 70. Kxf3 {[%emt 0:00:12]} Ra3+ {[%emt 0:00:04]} 71. Kg2 $2 {[%emt 0:00:33]} (71. Kf2) 71... Ke6 $2 {[%emt 0:00:07]} (71... Kg4 72. Kf1 f5) 72. Bc5 $2 {[%emt 0:00:29]} (72. Kf2) 72... Ra6 $2 {[%emt 0:00:10]} (72... Ra2+ 73. Kf3 Kd5) 73. Kf3 $2 {[%emt 0:00:11]} (73. Bd4) 73... Kd5 {[%emt 0:00:58]} 74. Bb6 {[%emt 0:00:51]} Ke5 {[%emt 0:00:28]} 75. Bc5 {[%emt 0:00:49] Prevents Ra3+.} f5 {[%emt 0:00:08]} (75... Ra4 $142 76. Bb6 Kd6) 76. Ke3 $2 {[%emt 0:00:27]} (76. Bb6 $19) 76... f4+ {[%emt 0:00:04]} 77. Kd3 {[%emt 0:00:25]} Kd5 {[%emt 0:00:08]} 78. Bb6 {[%emt 0:00:27]} Ra3+ {[%emt 0:00:06]} 79. Kc2 {[%emt 0:00:14]} Kc4 {[%emt 0:00:34] ( -> ...Ra2+)} 80. Kb2 {[%emt 0:00:37] Prevents Ra2+.} Ra6 {[%emt 0:00:07] Black mates.} 81. Kc2 {[%emt 0:00:25]} Ra2+ {[%emt 0:00:14]} 82. Kb1 {[%emt 0:00:12]} Kb3 {[%emt 0:00:15]} 83. Kc1 {[%emt 0:01:10]} Kc3 {[%emt 0:00:11][%cal Ra2a1]} 84. Kd1 {[%emt 0:00:31]} Kd3 {[%emt 0:00:04][%cal Ra2a1]} 85. Kc1 {[%emt 0:00:33]} f3 {[%emt 0:00:14]} 86. Bc5 {[%emt 0:00:14]} Ke2 {[%emt 0:00:10] Weighted Error Value: White=0.20 (precise) /Black=0.09 (flawless)} 0-1

[Event "Dutch Open 2022"]
[Site "Dieren"]
[Date "2022.07.27"]
[Round "2.5"]
[White "Zwirs, Jasper"]
[Black "Van Roon, Sjoerd"]
[Result "0-1"]
[ECO "B33"]
[WhiteElo "2105"]
[BlackElo "2310"]
[Annotator "TA"]
[PlyCount "60"]
[EventDate "2022.07.14"]
[EventType "swiss"]
[EventCountry "NED"]
[SourceTitle "playchess.com"]
[Source "ChessBase"]
[SourceQuality "1"]
[TimeControl "40/5400+30:1800+30"]

{[%evp 34,60,18,0,42,20,30,0,13,-65,-14,-83,-80,-81,-74,-84,0,-8,0,0,-25,-190,0,-157,-145,-422,-412,-29997,-29998]} 1. e4 {[%emt 0:00:04] Bulletin} c5 {[%emt 0:00:03]} 2. Nf3 {[%emt 0:00:06]} Nc6 {[%emt 0:00:03]} 3. d4 {[%emt 0:00:06]} cxd4 {[%emt 0:00:03]} 4. Nxd4 {[%emt 0:00:05]} Nf6 {[%emt 0:00:05]} 5. Nc3 {[%emt 0:00:04]} e5 {[%emt 0:00:04]} 6. Ndb5 {[%emt 0:00:42]} d6 {[%emt 0:00:05]} 7. Bg5 {[%emt 0:00:09]} a6 {[%emt 0:00:04]} 8. Na3 {[%emt 0:00:04]} b5 {[%emt 0:00:04]} 9. Bxf6 {[%emt 0:00:39]} gxf6 {[%emt 0:00:24]} 10. Nd5 {[%emt 0:00:06]} f5 {[%emt 0:01:04]} 11. c3 {[%emt 0:00:34]} Bg7 {[%emt 0:03:11]} 12. exf5 {[%emt 0:00:50]} Bxf5 {[%emt 0:00:36]} 13. Nc2 {[%emt 0:00:08]} O-O {[%emt 0:07:08]} 14. Nce3 {[%emt 0:00:47]} Be6 {[%emt 0:00:05]} 15. Bd3 {[%emt 0:00:53]} f5 {[%emt 0:01:28]} 16. Qh5 {[%emt 0:00:31]} e4 {[%emt 0:06:21]} 17. Bc2 {[%emt 0:00:05]} Ne7 {[%emt 0:04:36]} 18. Bb3 {[%emt 0:01:31]} Nxd5 {[%emt 0:12:28] B33: Sicilian: Pelikan and Sveshnikov Variations.} 19. Nxd5 {[%emt 0:18:46] [#]} Be5 $146 {[%emt 0:00:46]} ({Predecessor:} 19... a5 20. Nf4 Bxb3 21. axb3 Qe7 22. O-O b4 23. cxb4 Qe5 24. Qg5 axb4 25. Rad1 Ra2 26. Nh5 {½-½ (54) Adams,M (2620)-Beliavsky,A (2620) Debrecen 1992 EU-chT [Bulletin]}) 20. g3 {[%emt 0:24:24]} Kh8 {[%emt 0:14:58] The position is equal.} 21. Ne3 {[%emt 0:25:48]} (21. Nf4 $11 Bxb3 22. axb3 (22. Ng6+ Kg7 $17) 22... Bxf4 23. gxf4) 21... Qf6 {[%emt 0:05:46]} (21... Qd7 $15 22. O-O-O a5) 22. Bxe6 {[%emt 0:05:39]} (22. O-O $11) 22... Qxe6 $17 {[%emt 0:00:05]} 23. Qd1 {[%emt 0:03:03]} b4 {[%emt 0:13:36] Black is more active.} 24. Qd5 {[%emt 0:01:48] [#]} Qg6 {[%emt 0:03:45]} ({Better is} 24... Qh6 $1 $17 25. Nc4 (25. Nxf5 $2 Qf6 $19) 25... bxc3 26. Nxe5 cxb2) 25. Nc4 $36 {[%emt 0:02:53][%mdl 2048] White is pushing.} Rae8 {[%emt 0:02:41] Hoping for ...f4.} 26. cxb4 {[%emt 0:01:33]} f4 {[%emt 0:00:10][%cal Oe4e3] ...e3! is the strong threat.} 27. O-O-O $2 {[%emt 0:10:53]} (27. Nxe5 $11 Rxe5 28. Qd4) 27... fxg3 $2 {[%emt 0:00:46]} (27... Rc8 $19 28. Kb1 e3+ 29. Ka1 Bg7) 28. fxg3 $2 {[%emt 0:01:11] [#]} (28. hxg3 $11 Rc8 29. Kb1 e3+ 30. Ka1 exf2 31. Nxe5 dxe5 32. Qxe5+ Qg7 33. Qe2) 28... e3 $1 $17 {[%emt 0:03:41] And now ...e2 would win.} ({Stronger than} 28... Rc8 29. Kb1 e3+ 30. Ka1 $15 (30. Rd3 $2 Rxc4 31. Qxc4 e2 $19)) 29. Nxe5 $4 {[%emt 0:00:26][%mdl 8192]} (29. Rhe1 $17 Bg7 30. Rxe3 (30. Rd3 $2 e2 $19)) 29... Rxe5 $19 {[%emt 0:00:09]} 30. Qxd6 {[%emt 0:00:21]} (30. Qc4 $19 e2 31. Rde1) 30... Rc8+ {[%emt 0:00:07] Weighted Error Value: White=1.11/Black=0.31} 0-1

[Event "Dutch Open 2022"]
[Site "Dieren"]
[Date "2022.07.27"]
[Round "2.6"]
[White "Van Baar, Esper"]
[Black "Baselmans, Sam"]
[Result "1/2-1/2"]
[ECO "C81"]
[WhiteElo "2281"]
[BlackElo "2182"]
[Annotator "TA"]
[PlyCount "41"]
[EventDate "2022.07.14"]
[EventType "swiss"]
[EventCountry "NED"]
[SourceTitle "playchess.com"]
[Source "ChessBase"]
[SourceQuality "1"]
[TimeControl "40/5400+30:1800+30"]

{[%evp 18,27,8,19,29,33,31,26,54,0,-1,-33]} 1. e4 {[%emt 0:08:23]} e5 {[%emt 0:00:11]} 2. Nf3 {[%emt 0:00:06]} Nc6 {[%emt 0:00:05]} 3. Bb5 {[%emt 0:00:45][%cal Bf1b5,Bb5a4,Ba4b3][%mdl 32]} a6 {[%emt 0:00:31]} 4. Ba4 {[%emt 0:00:06]} Nf6 {[%emt 0:00:06]} 5. O-O {[%emt 0:00:44]} Nxe4 {[%emt 0:00:26]} 6. d4 {[%emt 0:04:03]} b5 {[%emt 0:00:25]} 7. Bb3 {[%emt 0:00:24]} d5 {[%emt 0:00:18]} 8. dxe5 {[%emt 0:00:25]} Be6 {[%emt 0:00:11]} 9. Qe2 {[%emt 0:03:17]} Be7 {[%emt 0:04:08]} 10. Rd1 {[%emt 0:03:39][%cal Oc2c4] White wants to play c4!} Na5 {[%emt 0:10:56] Inhibits c4. C81: Open Ruy Lopez: Keres Variation (9 Qe2).} 11. c3 {[%emt 0:10:37] has lost popularity (11.Nbd2).} Nxb3 {[%emt 0:02:33]} 12. axb3 {[%emt 0:00:52][%cal Oa1a6]} c6 {[%emt 0:02:20]} 13. c4 {[%emt 0:08:42]} ({White should try} 13. Nd4 $14) 13... O-O $11 {[%emt 0:02:34]} 14. Be3 {[%emt 0:21:08] [#] White got outplayed after the opening.  Weighted Error Value: White=0.20 (precise) /Black=0.10 (very precise)} {Predecessor:} Qc7 $146 15. Na3 Rfc8 16. Rac1 Qb8 17. Bf4 Nc5 18. cxb5 axb5 19. b4 Ra4 20. Bg5 Bxg5 21. Nxg5 {½-½ (36) Fermen,G-Gerard,A (1769) ICCF email 2011} 1/2-1/2

[Event "Dutch Open 2022"]
[Site "Dieren"]
[Date "2022.07.27"]
[Round "2.7"]
[White "Grutter, Tim"]
[Black "Shakhverdian, William"]
[Result "1-0"]
[ECO "C73"]
[WhiteElo "2246"]
[BlackElo "2040"]
[Annotator "TA"]
[PlyCount "97"]
[EventDate "2022.07.14"]
[EventType "swiss"]
[EventCountry "NED"]
[SourceTitle "playchess.com"]
[Source "ChessBase"]
[SourceQuality "1"]
[TimeControl "40/5400+30:1800+30"]

{[%evp 12,97,0,7,14,0,8,-12,74,25,24,25,25,17,18,0,0,-22,-22,-59,-9,-9,19,-12,6,0,51,45,45,50,60,49,88,89,100,90,121,122,105,87,97,86,172,33,24,29,16,6,78,77,72,52,68,60,104,45,47,44,111,112,104,112,108,123,127,127,127,126,125,122,101,99,101,90,297,286,414,413,378,213,224,191,394,376,406,421,489,485]} 1. e4 {[%emt 0:00:05]} e5 {[%emt 0:00:17]} 2. Nf3 {[%emt 0:00:05]} Nc6 {[%emt 0:00:10]} 3. Bb5 {[%emt 0:00:16]} a6 {[%emt 0:00:49]} 4. Ba4 {[%emt 0:00:04]} d6 {[%emt 0:00:38]} 5. Bxc6+ {[%emt 0:05:39]} bxc6 {[%emt 0:00:08]} 6. d4 {[%emt 0:00:05]} exd4 {[%emt 0:02:25]} 7. Qxd4 {[%emt 0:01:34]} c5 {[%emt 0:07:37] C73: Ruy Lopez: Deferred Steinitz: 5 Bxc6+.} 8. Qe3 {[%emt 0:02:17] [#]} g6 $146 {[%emt 0:00:31]} ({Predecessor:} 8... Be7 9. Nc3 Bb7 10. O-O Nf6 11. h3 O-O 12. b3 Re8 13. Bb2 Bf8 14. Rfe1 Nxe4 15. Qf4 Nxc3 16. Bxc3 {0-1 (112) Hasangatin,R (2496)-Palchun,G (2441) Sochi 2017}) 9. Nc3 {[%emt 0:05:55]} Bg4 {[%emt 0:20:26]} (9... Bg7 $11 {keeps the balance.}) 10. b3 {[%emt 0:05:11]} (10. e5 $16 {aiming for exd6+.} d5 11. Qe2) 10... Bg7 $11 {[%emt 0:08:26]} 11. Bb2 {[%emt 0:02:09]} Ne7 {[%emt 0:03:25][%cal Bg8e7,Be7c6,Bc6d4][%mdl 32]} 12. O-O-O {[%emt 0:04:40]} O-O {[%emt 0:03:59]} 13. Na4 {[%emt 0:08:18]} (13. Rhe1 {seems wilder.} Nc6 14. Nd5 a5 15. Bxg7 Kxg7 16. a4) 13... Bxb2+ {[%emt 0:05:19]} 14. Nxb2 {[%emt 0:00:29]} Nc6 {[%emt 0:00:50]} 15. Rd2 {[%emt 0:10:55]} Qf6 {[%emt 0:06:48]} (15... f5 $15) 16. e5 {[%emt 0:05:53]} dxe5 {[%emt 0:03:48]} 17. Ng5 {[%emt 0:00:57]} Nd4 {[%emt 0:01:02]} 18. Ne4 {[%emt 0:01:21][%csl LRc5,LRf6]} Qe7 {[%emt 0:00:17]} (18... Qc6 $1 $11) 19. f3 {[%emt 0:03:36]} Bf5 {[%emt 0:04:39]} 20. c3 {[%emt 0:03:06]} Nb5 {[%emt 0:01:48]} 21. Nxc5 {[%emt 0:03:55]} Rfd8 {[%emt 0:01:10]} 22. Rhd1 {[%emt 0:00:35]} Rxd2 {[%emt 0:00:37]} 23. Rxd2 {[%emt 0:00:57]} h5 {[%emt 0:04:46] Against g4} 24. Nc4 {[%emt 0:06:25] White is more active.} Nxc3 {[%emt 0:06:22][%cal Oa8e8]} 25. Qxe5 {[%emt 0:00:25]} (25. Nxe5 {with more complications.} Nb5 26. g4 hxg4 27. fxg4 Bc8 28. Kb2) 25... Qxe5 {[%emt 0:00:44]} 26. Nxe5 {[%emt 0:00:01] Pair of Knights!} Re8 {[%emt 0:00:08]} (26... Nb1 $16) 27. Ned3 {[%emt 0:05:04]} ({White should try} 27. Nc6 $1 $18) 27... a5 $14 {[%emt 0:08:55]} 28. Kb2 {[%emt 0:01:04]} Nd5 {[%emt 0:00:11]} 29. Nf2 {[%emt 0:01:59]} Nf6 {[%emt 0:01:32] Prevents Nfe4.} (29... Re5 $11 {remains equal.}) 30. a4 $16 {[%emt 0:02:12]} Re5 {[%emt 0:00:39]} 31. Nfd3 {[%emt 0:02:05]} Rd5 {[%emt 0:05:00]} 32. Kc3 {[%emt 0:00:25]} h4 {[%emt 0:00:04]} 33. g4 {[%emt 0:06:11]} (33. Nb7 $1 $16) 33... hxg3 $14 {[%emt 0:00:29]} 34. hxg3 {[%emt 0:00:03][%cal Bh2g3,Bg3g4][%mdl 32]} g5 {[%emt 0:00:42]} (34... Bxd3 $14 35. Nxd3 Kg7) 35. g4 $16 {[%emt 0:01:28]} Bxd3 {[%emt 0:01:40]} 36. Nxd3 {[%emt 0:00:07][%mdl 4096] Endgame KRN-KRN} Nd7 {[%emt 0:00:06]} 37. Nb2 {[%emt 0:01:21]} Rc5+ {[%emt 0:02:01]} 38. Nc4 {[%emt 0:00:05]} Ne5 {[%emt 0:00:26]} 39. Rd8+ {[%emt 0:00:53]} (39. Kd4 $6 Rxc4+ 40. Kxe5 Rc3 $11) 39... Kg7 {[%emt 0:00:05]} 40. Ra8 {[%emt 0:02:45] Hoping for Kd4.} ({Don't play} 40. Kd4 $6 Rxc4+ 41. Kxe5 Rc3 $11) 40... Nc6 {[%emt 0:00:59]} 41. Rc8 $1 {[%emt 0:36:12]} Ne7 {[%emt 0:04:41] [#]} 42. Rb8 {[%emt 0:00:00] Rb7 is the strong threat.} Nc6 $2 {[%emt 0:06:02] [#] Loses the game.} (42... Kf6 $16 {might work better.}) 43. Rb7 $1 $18 {[%emt 0:00:00]} Nd8 {[%emt 0:11:58]} (43... Rd5 $142 44. Rxc7 Nb4) 44. Ra7 {[%emt 0:00:00]} Kf6 {[%emt 0:01:51]} 45. Kd4 {[%emt 0:06:13]} (45. Rxa5 $142 Rxa5 46. Nxa5) 45... Ne6+ {[%emt 0:03:02]} 46. Ke4 {[%emt 0:00:00]} Rc6 $2 {[%emt 0:03:12]} (46... Ke7 47. Ra8 (47. Rxa5 f6 $18) (47. Nxa5 Rc3 $16) 47... f6 48. Rxa5 Rc6) 47. Rxa5 {[%emt 0:00:00]} Nf4 {[%emt 0:00:36]} 48. Rf5+ {[%emt 0:00:00]} Ke7 {[%emt 0:00:14] [#]} 49. Rxf7+ $3 {[%emt 0:00:00][%mdl 512] Weighted Error Value: White=0.17 (very precise) /Black=0.31} 1-0